Cogmind - Beta 14 @@@ ROGUE MODE // 2024.08.07 @ 23:17:29 Player: Sionnis Result: Self-destructed Performance ------------- Evolutions (0) 0 Regions Visited (4) 800 Robots Destroyed (26) 130 Value Destroyed (655) 655 Prototype IDs (4) 80 Alien Tech Used (0) 0 Bonus (300) 300 TOTAL SCORE: 1965 Bonus ------- Registered with UFD 300 Cogmind --------- Core Integrity 80/250 Matter 257/300 Energy 160/160 System Corruption 0% Temperature Cool (0) Movement Flying (194) Ox2 Location -9/Scraptown Parts ------- > --- POWER (1) -------- Light Fission Core > --- PROPULSION (2) --- Flight Unit Cesium-ion Thruster > --- UTILITY (2) ------ Medium Storage Unit A0-MCA's Component Scanner > --- WEAPON (2) ------- Datajack Mace > --- INVENTORY (10) --- Advanced Heat Sink Enhanced Optical Array Sensor Array Signal Interpreter Hardened Light Armor Plating Trap Extractor (0/4) Grenade Launcher Mini Grenade Launcher Peak State ------------ > --- POWER ------------ Light Fission Core > --- PROPULSION ------- Flight Unit Cesium-ion Thruster > --- UTILITY ---------- Medium Storage Unit A0-MCA's Component Scanner > --- WEAPON ----------- Overtuned Coil Gun Mace > --- INVENTORY -------- Advanced Heat Sink Visual Processing Unit Sensor Array Signal Interpreter Hardened Light Armor Plating Trap Extractor Grenade Launcher Mini Grenade Launcher [Rating: 28] Favorites ----------- Power Light Fission Core Engine Ion Engine Power Core Light Fission Core Propulsion Light Treads Treads Light Treads Flight Unit Flight Unit Utility Medium Storage Unit Device Structural Scanner Storage Medium Storage Unit Processor A0-MCA's Component Scanner Protection Hardened Light Armor Plating Weapon Datajack Energy Gun Medium Laser Energy Cannon Subdweller Beam Cannon Ballistic Gun Light Assault Rifle Launcher Grenade Launcher Impact Weapon Mace Special Melee Weapon Datajack Build | -11 -10 -10 -9 -9 ------- Run | Yrd Mat Sub Rec Scr Slots Evolved . | . . . . . Power . | . . . . . Propulsion . | . . . . . Utility . | . . . . . Weapon . | . . . . . Parts Attached 40 | 6 7 5 4 18 Power 4 | 1 . 1 . 2 Engine 3 | 1 . 1 . 1 Core 1 | . . . . 1 Reactor . | . . . . . Propulsion 8 | 2 2 2 . 2 Treads 6 | 2 2 2 . . Leg . | . . . . . Wheel . | . . . . . Hover . | . . . . . Flight 2 | . . . . 2 Utility 12 | 1 4 . 2 5 Device 2 | . 2 . . . Storage 6 | 1 2 . 1 2 Processor 1 | . . . . 1 Hackware . | . . . . . Protection 3 | . . . 1 2 Artifact . | . . . . . Weapon 16 | 2 1 2 2 9 Energy Gun 3 | 1 1 . 1 . Energy Cannon 1 | . . 1 . . Ballistic Gun 3 | 1 . . 1 1 Ballistic Cannon . | . . . . . Launcher 2 | . . 1 . 1 Special Weapon . | . . . . . Impact Weapon 3 | . . . . 3 Slashing Weapon . | . . . . . Piercing Weapon . | . . . . . Special Melee Weapon 4 | . . . . 4 Unidentified Prototypes . | . . . . . Parts Lost 4 | . 2 2 . . Power 1 | . . 1 . . Propulsion . | . . . . . Utility 1 | . 1 . . . Weapon 2 | . 1 1 . . Highest Loss Streak 2 | . 1 2 . . To Critical Strikes . | . . . . . Average Slot Usage (%) 97 | . 95 96 100 97 Engine 6 | . 14 12 14 3 Core 7 | . . . . 10 Treads 18 | . 28 28 28 13 Flight 9 | . . . . 14 Device 3 | . 10 14 8 . Storage 13 | . 14 14 14 13 Processor 3 | . . . . 4 Protection 5 | . . . 5 6 Energy Gun 3 | . 13 9 2 . Energy Cannon 2 | . . 11 14 . Ballistic Gun 4 | . 14 2 11 . Impact Weapon 8 | . . . . 13 Special Melee Weapon 8 | . . . . 13 Peak Build Rating 28 | 6 8 11 14 28 Average Rating 14 | 4 7 10 12 16 On Entrance 7 | . 6 8 11 14 Naked Turns . | . . . . . Heaviest Build 61 | 13 19 27 61 61 Greatest Support 40 | 40 40 40 40 40 Greatest Overweight (x) 2 | . . . 1 2 Average Overweight (x) . | . . . . 1 Largest Inventory Capacity 20 | 8 10 10 20 20 Average Capacity 12 | 6 9 10 14 14 Most Carried 15 | 3 10 10 15 15 Average Carried 8 | 1 8 9 11 8 Final Capacity 20 | 8 10 10 20 10 Final Carried 14 | 3 10 10 14 8 Class Distribution -------------------- 86% | Mutant 13% | Scavenger-Mutant Dominant Class ---------------- Mutant | -10/Materials Mutant | -10/Subcaves Scavenger-Mutant | -9/Recycling Mutant | -9/Scraptown Resources | -11 -10 -10 -9 -9 ----------- Run | Yrd Mat Sub Rec Scr Matter Collected 693 | 195 185 130 26 157 Remotely . | . . . . . Salvage Created 810 | . 560 79 171 . Parts 56 | . 37 9 10 . Haulers Intercepted 2 | . 2 . . . Recyclers Shooed 2 | . 2 . . . Parts Field Recycled . | . . . . . Retrieved Matter . | . . . . . Parts Self-Destructed 11 | . . 11 . . Prevented . | . . . . . Kills | -11 -10 -10 -9 -9 ------- Run | Yrd Mat Sub Rec Scr Combat Hostiles Destroyed 20 | . 13 4 3 . Guns 14 | . 13 1 . . Cannons 4 | . . 1 3 . AOE 2 | . . 2 . . Classes Destroyed 8 | . 5 2 1 . Hauler 2 | . 2 . . . Operator 1 | . 1 . . . Turret 2 | . . 2 . . Watcher 1 | . 1 . . . Swarmer 8 | . 6 2 . . Grunt 7 | . 7 . . . Sentry 3 | . . . 3 . Subdweller 2 | . . 2 . . Best Kill Streak 4 | . 4 4 2 . Combat Bots Only 3 | . 3 2 2 . Max Kills in Single Turn 2 | . 2 2 1 . Gunslinging 1 | . 1 . . . Exploded 1 | . . 1 . . Melee . | . . . . . Uniques/NPCs Destroyed . | . . . . . Combat | -11 -10 -10 -9 -9 -------- Run | Yrd Mat Sub Rec Scr Hostile Shots Fired 96 | . 56 38 2 . Missed 31 | . 17 13 1 . Damage Taken 859 | . 471 373 15 . Core 170 | . 79 76 15 . Absorbed by Shields . | . . . . . Core Remaining (%) 100 | 100 . . . . Volleys Fired 80 | . 60 16 4 . Largest 2 | . 2 2 2 . Hottest 130 | . 70 130 130 . Shots Fired 152 | . 119 25 8 . Gun 134 | . 119 11 4 . Cannon 10 | . . 6 4 . Launcher 8 | . . 8 . . Special . | . . . . . Kinetic 65 | . 60 3 2 . Thermal 79 | . 59 14 6 . Explosive 8 | . . 8 . . Electromagnetic . | . . . . . Robot Hit Streak 11 | . 11 11 4 . Robot Miss Streak 3 | . 3 1 1 . Penetration Max . | . . . . . Secondary Targets 4 | . 3 1 . . Max Gunslinging Chain 1 | . 1 1 . . Shots Hit Robots 111 | . 83 18 6 4 Core Hits 46 | . 31 12 3 . Critical Kills 1 | . 1 . . . Critical Parts Destroyed . | . . . . . Critical Strikes 5 | . 3 2 . . Burn 4 | . 2 2 . . Destroy 1 | . 1 . . . Melee Attacks 6 | . . . . 6 Impact 2 | . . . . 2 Slashing . | . . . . . Piercing . | . . . . . Sneak Attacks 4 | . . . . 4 Combat Hostiles . | . . . . . Follow-up Attacks . | . . . . . Damage Inflicted 1554 | . 889 526 139 . Guns 1039 | . 889 120 30 . Cannons 224 | . . 115 109 . Explosions 291 | . . 291 . . Melee . | . . . . . Ramming . | . . . . . Kinetic 374 | . 337 19 18 . Thermal 889 | . 552 216 121 . Explosive 291 | . . 291 . . Electromagnetic . | . . . . . Impact . | . . . . . Slashing . | . . . . . Piercing . | . . . . . Highest Corruption . | . . . . . Average Corruption . | . . . . . Corruption Purged . | . . . . . Corruption Blocked . | . . . . . Overload Shots . | . . . . . Overflow Damage 25 | . . 25 . . Projectiles . | . . . . . Explosions 25 | . . 25 . . Melee . | . . . . . Knockbacks . | . . . . . Impact . | . . . . . Kinetic . | . . . . . Secondary . | . . . . . Self-Inflicted Damage 33 | . . 33 . . Shots 2 | . . 2 . . Rammed . | . . . . . Targets Rammed . | . . . . . Kicked . | . . . . . Crushed . | . . . . . Highest Temperature 108 | . 77 3 108 . Average Temperature 27 | . 26 3 48 . Received Heat Transfer 285 | . 174 102 9 . Siege Activations . | . . . . . Robots Corrupted . | . . . . . Combat Hostiles . | . . . . . Parts Fried . | . . . . . Impact Corruptions . | . . . . . Robots Melted . | . . . . . Combat Hostiles . | . . . . . Parts Melted 3 | . 1 2 . . Heat Transferred 2516 | . 1739 592 185 . Parts Sabotaged . | . . . . . Parts Stolen . | . . . . . Parts Stripped . | . . . . . Power Chain Reactions . | . . . . . Alert | -11 -10 -10 -9 -9 ------- Run | Yrd Mat Sub Rec Scr Peak Influence 216 | . 216 . 148 . Initial 88 | . . . 88 . Average 88 | . 87 . 102 . Maximum Alert Level 1 | . 1 . . . Low Security (%) 98 | 100 97 . 100 . Level 1 1 | . 2 . . . Level 2 . | . . . . . Level 3 . | . . . . . Level 4 . | . . . . . Level 5 . | . . . . . High Security . | . . . . . Max Security . | . . . . . Squads Dispatched 2 | . 2 . . . Investigation 1 | . 1 . . . Extermination . | . . . . . Reinforcement 1 | . 1 . . . Assault . | . . . . . Garrison . | . . . . . Intercept . | . . . . . Searches Triggered . | . . . . . Construction Impeded . | . . . . . Haulers Reinforced . | . . . . . Active Scanning Responses . | . . . . . Cargo Convoy Interrupts . | . . . . . Stealth | -11 -10 -10 -9 -9 --------- Run | Yrd Mat Sub Rec Scr Distress Signals 1 | . 1 . . . Communications Jammed . | . . . . . Distress Signals . | . . . . . Times Spotted 34 | . 24 8 1 1 Peak Tracking Total 4 | . 4 3 . 1 Tactical Retreats 1 | . . 1 . . Traps | -11 -10 -10 -9 -9 ------- Run | Yrd Mat Sub Rec Scr Traps Triggered 2 | . 2 . . . Indirectly . | . . . . . Trap Hack Attempts . | . . . . . Triggered . | . . . . . Disarmed . | . . . . . Reprogrammed . | . . . . . Reused . | . . . . . Traps Extracted . | . . . . . Installed . | . . . . . Triggered . | . . . . . Machines | -11 -10 -10 -9 -9 ---------- Run | Yrd Mat Sub Rec Scr Machines Disabled 4 | . . 3 . 1 Max in Single Turn 2 | . . 2 . 1 Machines Repaired . | . . . . . Machines Dismantled . | . . . . . Machines Sabotaged . | . . . . . Overloaded Fab Kills . | . . . . . Hacking | -11 -10 -10 -9 -9 --------- Run | Yrd Mat Sub Rec Scr Machines Accessed 8 | . 7 . . 1 Terminals 6 | . 6 . . . Fabricators . | . . . . . Repair Stations . | . . . . . Recycling Units 1 | . 1 . . . Scanalyzers . | . . . . . Garrison Access . | . . . . . Total Hacks 17 | . 14 . . 3 Successful 13 | . 10 . . 3 Failed 3 | . 3 . . . Catastrophic 1 | . 1 . . . Database Lockouts 1 | . 1 . . . Manual 11 | . 11 . . . Terminals 13 | . 13 . . . Fabricators . | . . . . . Repair Stations . | . . . . . Recycling Units 1 | . 1 . . . Scanalyzers . | . . . . . Garrison Access . | . . . . . Terminal Hacks 5 | . 2 . . 3 Record 3 | . . . . 3 Robot Analysis 1 | . 1 . . . Prototype ID Bank 1 | . 1 . . . Fabricator Hacks . | . . . . . Repair Station Hacks . | . . . . . Recycling Unit Hacks 1 | . 1 . . . Retrieve Components 1 | . 1 . . . Scanalyzer . | . . . . . Garrison Access Hacks . | . . . . . Unauthorized Hacks 7 | . 7 . . . Terminals 7 | . 7 . . . Botnet 2 | . 2 . . . Skim 5 | . 5 . . . Fabricators . | . . . . . Repair Stations . | . . . . . Recycling Units . | . . . . . Scanalyzers . | . . . . . Garrison Access . | . . . . . Data Cores Recovered . | . . . . . Used . | . . . . . Hacking Detections 4 | . 4 . . . Full Trace Events . | . . . . . Feedback Events . | . . . . . Feedback Blocked . | . . . . . Robot Schematics Acquired . | . . . . . Robots Built . | . . . . . Authchips . | . . . . . Time . | . . . . . Total Robot Build Rating . | . . . . . Part Schematics Acquired . | . . . . . Parts Built . | . . . . . Authchips . | . . . . . Time . | . . . . . Total Part Build Rating . | . . . . . Parts Repaired . | . . . . . Time . | . . . . . Parts Recycled . | . . . . . Recycled Matter . | . . . . . Retrieved Matter . | . . . . . Retrieved Components 3 | . 3 . . . Parts Scanalyzed . | . . . . . Part Schematics Acquired . | . . . . . Parts Damaged . | . . . . . Bothacking | -11 -10 -10 -9 -9 ------------ Run | Yrd Mat Sub Rec Scr Used RIF Installer . | . . . . . Robots Hacked 4 | . . . . 4 Non-combat 2 | . . . . 2 Combat 2 | . . . . 2 Robot Hacks Applied 4 | . . . . 4 parse_system 4 | . . . . 4 Relay Couplers Released . | . . . . . Fabnet Peak Effective % . | . . . . . Robots Rewired . | . . . . . Allies Hacked . | . . . . . Hacks Repelled . | . . . . . Allies | -11 -10 -10 -9 -9 -------- Run | Yrd Mat Sub Rec Scr Total Allies . | . . . . . Largest Group . | . . . . . Highest-Rated Group . | . . . . . Highest-Rated Ally . | . . . . . Total Orders . | . . . . . Ally Attacks . | . . . . . Total Damage . | . . . . . Kills . | . . . . . Allies Corrupted . | . . . . . Allies Melted . | . . . . . Intel | -11 -10 -10 -9 -9 ------- Run | Yrd Mat Sub Rec Scr Robot Analysis Total 1 | . 1 . . . Derelict Logs Recovered 3 | . . . . 3 Drone Launches . | . . . . . Drone Recoveries . | . . . . . Exploration | -11 -10 -10 -9 -9 ------------- Run | Yrd Mat Sub Rec Scr Turns Passed 5984 | 69 1210 283 507 3915 Spaces Moved 2907 | 46 627 138 255 1841 Core 14 | 14 . . . . Treads 1865 | 32 627 138 255 813 Legs . | . . . . . Wheels . | . . . . . Hover . | . . . . . Flight 1028 | . . . . 1028 Fastest Speed 34 | 50 160 160 160 34 Average Speed 193 | 126 160 160 188 209 Slowest Speed 250 | 160 160 160 250 250 Overloaded Moves . | . . . . . Propulsion Burnouts . | . . . . . Robots Hopped . | . . . . . Cave-ins Triggered . | . . . . . Exploration Rate (%) 52 | 3 96 11 56 96 Regions Visited 4 Branch Regions 3 Pre-discovered Areas 2 | . 1 . . 1 Known Exits Taken 2 | . 1 1 . . Unknown Exits Taken 2 | 1 . . 1 . Scrap Searched 7 | . . . . 7 Spaces Dug 7 | . . 6 . 1 Terrain Destroyed 33 | . . 32 . 1 Melee 1 | . . . . 1 Projectile 2 | . . 2 . . AOE 30 | . . 30 . . Terrain Rammed . | . . . . . Walls Destroyed . | . . . . . Machines Disabled . | . . . . . Actions | -11 -10 -10 -9 -9 --------- Run | Yrd Mat Sub Rec Scr Total 3135 | 54 729 178 275 1899 Wait 30 | . 20 9 1 . Move 2903 | 45 626 137 254 1841 Hop . | . . . . . Pick Up 34 | 3 10 5 7 9 Fast Attach 19 | 6 2 2 1 8 Attach 4 | . 1 . . 3 Detach 1 | . . . . 1 Swap 17 | . 4 3 3 7 Drop 41 | . 6 6 5 24 Fire 80 | . 60 16 4 . Melee 6 | . . . . 6 Ram . | . . . . . Kick . | . . . . . Crush . | . . . . . Escape Stasis . | . . . . . Rewire . | . . . . . Trap . | . . . . . Miscellaneous . | . . . . . Route ------- -11/Scrapyard -10/Materials (discovered 5 exits: [*Mat x3] / *Min / *Sub) -10/Subcaves -9/Recycling (discovered 2 exits: [*Fac] / *Scr) -9/Scraptown (discovered 2 exits: [*Fac x2]) History --------- Turn | Location | Event 7 | -11/Scrapyard | Discovered new exit (range 16) 70 | -11/Scrapyard | Entered Materials 255 | -10/Materials | Discovered new exit (range 9) 318 | -10/Materials | Build established: Mutant 403 | -10/Materials | Central database locked down 511 | -10/Materials | Discovered new exit (range 4) 776 | -10/Materials | Discovered new exit (range 10) 786 | -10/Materials | Learned location of 2 exits from Mines 862 | -10/Materials | Learned location of 1 exit from Storage 929 | -10/Materials | Learned Storage trap positions 1030 | -10/Materials | Identified exit to Mines 1030 | -10/Materials | Identified exit to Subcaves 1088 | -10/Materials | Learned location of Subcaves (-10) 1221 | -10/Materials | Learned Materials emergency access door positions 1280 | -10/Materials | Entered Subcaves 1281 | -10/Subcaves | A swath of the cavern ceiling suddenly collapsed 1281 | -10/Subcaves | Identified exit to Recycling 1342 | -10/Subcaves | Core integrity fell below 50% 1563 | -10/Subcaves | Entered Recycling 1826 | -9/Recycling | Build established: Scavenger-Mutant 1832 | -9/Recycling | Discovered new exit (range 5) 2010 | -9/Recycling | Scanned before Scraplab entrance 2045 | -9/Recycling | Entered Scraplab 2065 | -9/Recycling | Discovered new exit (range 3) 2070 | -9/Recycling | Entered Scraptown 2311 | -9/Scraptown | Scanned Subdweller tech in exchange for log data 2323 | -9/Scraptown | Learned Research garrison access intel 2326 | -9/Scraptown | Learned location of Zion (-7) 2356 | -9/Scraptown | Discovered new exit (range 11) 2626 | -9/Scraptown | Build established: Mutant 3885 | -9/Scraptown | Visited TADAMA 3920 | -9/Scraptown | Visited Bundlers 4058 | -9/Scraptown | Visited Assassins FH 4091 | -9/Scraptown | Visited The Evicted 4131 | -9/Scraptown | Visited Red Mages 4207 | -9/Scraptown | Visited Symbiants 4257 | -9/Scraptown | Visited Cyclists 4306 | -9/Scraptown | Visited UFD Registry 4306 | -9/Scraptown | Registered with UFD as "Kinetikit" 4347 | -9/Scraptown | Entered Cyclist Reading Room 4542 | -9/Scraptown | Visited Research Penetration Think Tank 4589 | -9/Scraptown | Visited A0-MCA Data Center 4600 | -9/Scraptown | Given a B+ rating by A0-MCA 4603 | -9/Scraptown | Found A0-MCA's Component Scanner 4676 | -9/Scraptown | Visited Curators Association 4754 | -9/Scraptown | Visited Scrapoid Pod Storage 4805 | -9/Scraptown | Visited Scrapoid Research Area 4890 | -9/Scraptown | Discovered new exit (range 5) 5063 | -9/Scraptown | Visited Modified Component R&D 5173 | -9/Scraptown | Visited Supply Room 5281 | -9/Scraptown | Visited Derelict Rescue Squad 5349 | -9/Scraptown | Visited Chapter 10 5950 | -9/Scraptown | Attacked by Scraptown defenders 5985 | -9/Scraptown | Self-destructed Last Messages --------------- Scrap Shields are already pretty good, but imagine an alternative version not limited to compatible fragments for repairs! Anyway, if you do find one, let me know. CP-QWV(c): Find a Scrap Shield yet? I may just have to go to the Subcaves myself. CP-QWV(c): Stop poking me! Searching scrap... Found Welding Torch. Found Power Shielding. Found Wheel. Found 57 Matter. Acquired 57 matter. Multiple signs read "I'm always busy, go away." U9-4DP(p): "Ugh, more debugging..." WC-UCJ(c): "Come one, come all! See for yourself a fine selection of the many wondrous pieces in our collection!" ANNOUNCEMENT: Intruder alert! Defend Scraptown! Machine disabled. Map ----- +----------------------------------------------------+ | ?????????????????????????????????????????????????? | | ?????????????????????????????????????????????????? | | ?????????????????????????????????????????????????? | | ?????????????????????????????????????????????????? | | ?????????????????????????????????????????????????? | | ?????????????????????????????????????????????????? | | ????????????????????###################???####???? | | ???????????????????#"""##"""##""|##"""#??## ##??? | | ???????????????????#"" ##"" ##""|##!!"#### #### | | ???????????????????#"" | | ???????????????????# | | ???????????????????####################### #### | | ?????????????????????????????????????????## ##### | | ??????????###?###???????????????########### #"""" | | ??????????#"###"#????##########?# """""# #"""" | | ???????#### "!" ####?#""""""""#?# " " " # #" " | | ???????#" """ "#?# !!!"""#?#""" # #"[ | | ????????#"" ""#??#! ! ! "#?#""" # #" | | ????????#]" "[#??#"" """""#?#""" " # #" | | ???????##"" ""##?##;#######?# " """# #"""" | | ???????#" "#?# """""""#?# """# ##### | | ???????##"" ""##?#" ! "#?#"" """# #"""" | | ????????#!" "!#??#" "#?#" " # # [ | | ???????##"" ""##?#" "#?#" # # | | ???????#" "#?#" "#?# # # | | ???????###### ######?####@#####?##### ##### ## ## | | #???????##### ########### ########### ##### ## ## | | #???????#"""" """"""""""" """"""""""" """"" "" "# | | #???????#" "# | | #???????#" E "# | | #???????#" "# | | #???????#" "# | | #????####" | | #????"""" """""""""""""""""""""""""""" "# | | #????"""" """""""""""""""""""""""""""" "# | | #????"""" ""###### ################"" "# | | #????"""" ""# #?????????#"" "# | | #????"""" ""# X"?????????#"" "# | | ###??"""" ""# "" "" ##????????#"" "# | | ""#"#"""" ""# "" "" X"???????###"" "# | | """"#"""" ""# " " ######### #"" "# | | ""#######" "" "" | | ###?????#" "" "" "# | | #########" ""# " " ######### #"" "# | | ""# "" "" ""#??????###"" "# | | ""# "" "" ##????????#"" "# | | ""# ""?????????#"" "# | | ""#? #?????????#"" "# | | ""###### ################"" "# | | """""""""""""""""""""""""""" "# | +----------------------------------------------------+ Best States ------------- Heat Dissipation 25 Energy Generation 18 Energy Capacity 250 Matter Stores 300 Matter Capacity 300 Sight Range 16 Robot Scan Range 14 Terrain Scan Density 10 Armor Coverage 150 Evasion (%) 63 Recoil Reduction 2 Item Schematics ----------------- None Robot Schematics ------------------ None Fabricated ------------ Nothing Alien Tech Used ----------------- None Achievements -------------- None Challenges ------------ None Game ------ Seed AblativeChargePendant Manual? 0 Play Time 00:27:39 Cumulative 551.5 hours Start 2024.08.07 @ 22:51:22 End 2024.08.07 @ 23:17:29 Sessions 1 Manual Loads 0 Difficulty Rogue Special Mode None Game No. 290 Rogue 290 Adventurer 0 Explorer 0 Win Type - Total 36 Types 22/2/4/3/1/1/1/1/1 Lore% 87 Gallery% 96 Achievement% 98 Wizard Run 0 Options --------- Layout 1 ASCII 0 Keyboard 0 Movement Numpad Keybinds 0 Fullscreen 1 Font 24/Smallcaps Map View 50x35 Zoom Use 0% Tactical HUD 1 Map Filters NONE Filters NONE Steam 1 RUN: b0e6f3a1-c9d8-4ef8-a36d-5cbdba996628